bitfinex-derivatives/quotes_ETHF0:USTF0_20210406
["timestamp","ask_amount","ask_price","bid_price","bid_amount"]
[1617676497845,28.1722,2116.4,2116.3,4.90695]
[1617676498947,27.9734,2116.4,2116.3,4.90695]
[1617676500247,27.7396,2116.4,2116.3,4.90695]
[1617676500448,27.5017,2116.4,2116.3,4.90695]
[1617676500753,26.5716,2116.4,2116.3,4.90695]
[1617676500968,25.861,2116.4,2116.3,4.90695]
[1617676501356,24.7718,2116.4,2116.3,4.90695]
[1617676501556,23.5853,2116.4,2116.3,4.90695]
[1617676502154,22.3156,2116.4,2116.3,4.90695]
[1617676502357,22.3156,2116.4,2116.3,74.50235]
[1617676502556,19.1128,2116.4,2116.3,4.90695]
[1617676502756,16.7006,2116.4,2116.3,4.90695]
[1617676503256,16.0032,2116.4,2116.3,4.90695]
[1617676503657,13.6167,2116.4,2116.3,4.90695]
[1617676503859,13.6167,2116.4,2116.3,72.00545]
[1617676504058,13.6167,2116.4,2116.3,4.90695]
[1617676504259,10.1668,2116.4,2116.3,4.90695]
[1617676504460,9.6747,2116.4,2116.3,4.90695]
[1617676504660,7.3176,2116.4,2116.3,4.90695]
[1617676505960,7.2515,2116.4,2116.3,4.90695]
[1617676506160,6.7947,2116.4,2116.3,4.90695]
[1617676506560,6.5007,2116.4,2116.3,4.90695]
[1617676506961,6.0286,2116.4,2116.3,4.90695]
[1617676507161,5.7029,2116.4,2116.3,4.90695]
[1617676507360,5.075,2116.4,2116.3,4.90695]
[1617676507561,4.8373,2116.4,2116.3,4.90695]
[1617676508361,4.1292,2116.4,2116.3,4.90695]
[1617676508563,3.8958,2116.4,2116.3,4.90695]
[1617676509465,3.6632,2116.4,2116.3,4.90695]
[1617676510063,2.3989,2116.4,2116.3,4.90695]
[1617676510463,2.3989,2116.4,2116.3,69.10465]
[1617676510763,2.3989,2116.4,2116.3,4.90695]
[1617676511163,0.6993,2116.4,2116.3,4.90695]
[1617676511965,0.6993,2116.4,2116.3,6.00695]
[1617676514969,0.6993,2116.4,2116.3,78.54015]
[1617676515272,0.6993,2116.4,2116.3,6.00695]
[1617676515471,0.6993,2116.4,2116.3,10.89073069]
[1617676516269,0.6993,2116.4,2116.3,6.00695]
[1617676516869,77.7271,2118.1,2116.3,6.00695]
[1617676517371,77.7271,2118.1,2117.2,69.9786]
[1617676517670,77.7271,2118.1,2116.3,88.33475]
[1617676517671,77.7271,2118.1,2116.3,6.00695]
[1617676518076,77.7271,2118.1,2117.9,76.4885]
[1617676518873,77.7271,2118.1,2118.0,2.90695]
[1617676521577,77.7271,2118.1,2118.0,3.84305]
[1617676521877,77.7271,2118.1,2118.0,2.90695]
[1617676525585,2.0,2118.8,2118.0,2.90695]
[1617676525789,2.9422,2118.8,2118.0,2.90695]
[1617676525986,2.0,2118.3,2118.0,2.90695]
[1617676526789,2.90695,2118.1,2118.0,2.90695]
[1617676528089,2.90695,2118.1,2116.8,68.7892]
[1617676528291,2.90695,2118.1,2116.2,1.1]
[1617676528489,62.3205,2117.6,2116.1,65.0977]
[1617676528690,64.6091,2117.6,2116.1,67.0977]
[1617676528892,64.6091,2117.6,2117.5,2.90695]
[1617676529604,2.2886,2117.6,2117.5,2.90695]
[1617676530692,2.2886,2117.6,2116.8,54.9695]
[1617676530904,2.2886,2117.6,2117.5,2.90695]
[1617676532800,5.19555,2117.6,2117.5,2.90695]
[1617676536201,2.2886,2117.6,2117.5,2.90695]
[1617676536402,67.1203,2117.8,2117.5,2.90695]
[1617676538003,14.0,2117.6,2117.5,2.90695]
[1617676538204,16.3299,2117.6,2117.5,2.90695]
[1617676547822,14.0,2117.6,2117.5,2.90695]
[1617676548522,14.0,2117.6,2117.5,5.65425]
[1617676550422,14.0,2117.6,2117.5,2.90695]
[1617676551024,14.0,2117.6,2117.5,4.79535]
[1617676552535,14.0,2117.6,2117.5,6.79535]
[1617676552933,13.7581,2117.6,2117.5,6.79535]
[1617676555230,13.7581,2117.6,2117.5,4.90695]
[1617676557828,13.5204,2117.6,2117.5,4.90695]
[1617676558632,13.2822,2117.6,2117.5,4.90695]
[1617676560030,13.0369,2117.6,2117.5,7.32455]
[1617676561738,59.0156,2118.9,2117.5,7.32455]
[1617676561938,59.0156,2118.9,2117.6,1.1]
[1617676562941,59.0156,2118.9,2118.8,58.3838]
[1617676563141,59.0156,2118.9,2118.8,61.29075]
[1617676563345,2.90695,2120.4,2118.8,2.90695]
[1617676563542,12.8952,2121.1,2118.9,2.0]
[1617676563743,12.8952,2121.1,2120.2,53.7547]
[1617676564544,2.0,2121.0,2120.2,53.7547]
[1617676564744,2.0,2121.0,2118.8,5.84085]
[1617676564745,0.9526,2120.8,2118.8,5.84085]
[1617676564943,70.9909,2120.8,2118.8,5.84085]
[1617676565144,72.9909,2120.8,2120.0,2.90695]
[1617676565444,72.9909,2120.8,2118.4,57.7251]
[1617676565445,2.0,2120.5,2118.4,57.7251]
[1617676566443,2.0,2120.5,2118.4,58.6808]
[1617676567249,15.0,2120.6,2120.0,2.90695]
[1617676567448,15.0,2120.6,2120.1,54.7221]
[1617676567848,15.0,2120.6,2120.1,44.7221]
[1617676568651,17.0,2120.6,2120.1,44.7221]
[1617676569053,17.0,2120.6,2120.3,2.90695]
[1617676571155,2.90695,2120.4,2120.3,2.90695]
[1617676571554,15.0,2120.6,2120.3,2.90695]
[1617676572255,17.0,2120.6,2120.3,2.90695]
[1617676573156,2.90695,2120.4,2120.3,2.90695]
[1617676573357,15.0,2120.6,2120.3,2.90695]
[1617676579663,15.0,2120.6,2120.3,4.90695]
[1617676582563,15.0,2120.6,2120.3,2.90695]
[1617676584876,17.1998,2120.6,2120.3,2.90695]
[1617676586584,15.0,2120.6,2120.3,2.90695]
[1617676589469,15.0,2120.6,2120.3,3.83945]
[1617676589988,14.8007,2120.6,2120.3,5.83945]
[1617676590670,14.1346,2120.6,2120.3,5.83945]
[1617676591771,7.5858,2120.6,2120.3,5.83945]
[1617676591971,6.3638,2120.6,2120.3,6.93945]
[1617676592172,0.715,2120.6,2120.3,6.93945]
[1617676592574,13.457,2123.3,2120.3,6.93945]
[1617676592975,13.457,2123.3,2121.5,64.0468]
[1617676593172,13.457,2123.3,2123.2,2.90695]
[1617676594374,15.457,2123.3,2123.2,2.90695]
[1617676595277,18.36395,2123.3,2123.2,2.90695]
[1617676597974,19.30635,2123.3,2123.2,2.90695]
[1617676599384,21.52275,2123.3,2123.2,2.90695]
[1617676600777,21.52275,2123.3,2121.8,77.6648]
[1617676601279,18.6158,2123.3,2122.7,2.90695]
[1617676603380,2.90695,2122.8,2122.7,2.90695]
[1617676603580,6.83125,2122.8,2122.7,2.90695]
[1617676603880,6.83125,2122.8,2121.8,77.6648]
[1617676605380,3.9243,2122.8,2122.4,2.90695]
[1617676606479,1.9243,2122.8,2122.4,2.90695]
[1617676606680,2.0,2122.7,2120.3,2.0325]
[1617676606880,2.0,2122.1,2120.3,1.1]
[1617676607081,2.0,2122.1,2120.0,63.7722]
[1617676607496,2.0,2122.1,2121.4,2.90695]
[1617676608583,1.8378,2122.2,2121.4,2.90695]
[1617676609487,1.8378,2122.2,2122.1,2.90695]
[1617676611587,6.74475,2122.2,2122.1,2.90695]
[1617676613590,4.90695,2122.2,2122.1,2.90695]
[1617676625410,4.90695,2122.2,2122.1,3.85095]
[1617676625605,4.90695,2122.2,2122.1,2.90695]
[1617676625806,7.34995,2122.2,2122.1,2.90695]
[1617676627705,4.90695,2122.2,2122.1,2.90695]
[1617676627907,13.457,2123.3,2122.4,78.9012]
[1617676628306,43.457,2123.3,2122.4,78.9012]
[1617676628908,44.3892,2123.3,2122.4,78.9012]
[1617676629207,2.0,2123.2,2122.4,78.9012]
[1617676629407,13.457,2123.3,2122.4,78.9012]
[1617676629608,13.457,2123.3,2122.6,2.90695]
[1617676630110,13.457,2123.3,2122.4,66.80815]
[1617676630510,2.0,2123.2,2122.4,66.80815]
[1617676631516,14.3983,2123.3,2122.4,66.80815]
[1617676631714,13.457,2123.3,2122.8,2.90695]
[1617676633316,13.457,2123.3,2123.2,70.2092]
[1617676633617,16.36395,2123.3,2123.2,73.11615]
[1617676636017,13.457,2123.3,2123.2,73.11615]
[1617676637722,13.457,2123.3,2123.2,2.90695]
[1617676638923,9.09305,2123.2,2122.7,64.1008]
[1617676639624,2.90695,2123.1,2123.0,2.90695]
[1617676642229,9.09305,2123.2,2123.0,2.90695]
[1617676646533,9.09305,2123.2,2123.1,60.042]
[1617676646735,9.09305,2123.2,2123.1,62.529]
[1617676647835,9.09305,2123.2,2123.1,2.487]
[1617676648839,9.09305,2123.2,2123.1,79.5404]
[1617676650941,9.09305,2123.2,2123.1,2.487]
[1617676651141,9.09305,2123.2,2123.0,2.90695]
[1617676653445,9.09305,2123.2,2122.4,2.0]
[1617676653647,77.1722,2123.1,2121.5,0.9542]
[1617676653946,77.1722,2123.1,2122.5,2.90695]
[1617676654945,2.0717,2123.1,2122.5,2.90695]
[1617676655745,2.90695,2122.6,2122.5,2.90695]
[1617676656046,5.03555,2122.6,2122.5,2.90695]
[1617676657746,5.03555,2122.6,2121.5,71.62]
[1617676657947,3.0841,2122.6,2122.0,2.90695]
[1617676658147,2.1286,2122.6,2122.0,2.90695]
[1617676659949,2.1286,2122.6,2122.5,2.90695]
[1617676661350,66.5006,2122.8,2122.5,2.90695]
[1617676661750,4.0717,2123.1,2122.5,2.90695]
[1617676662050,2.90695,2122.6,2122.5,2.90695]
[1617676668758,4.78295,2122.6,2122.5,2.90695]
[1617676670960,4.78295,2122.6,2121.0,1.1]
[1617676671161,4.78295,2122.6,2121.7,65.4836]
[1617676671991,1.876,2122.6,2122.0,2.90695]
[1617676672484,53.4916,2122.4,2122.0,2.90695]
[1617676673283,2.0,2122.3,2122.0,2.90695]
[1617676673973,2.90695,2122.1,2122.0,2.90695]
[1617676675270,4.62885,2122.1,2120.9,1.1]
[1617676675874,1.7219,2122.1,2121.5,2.90695]
[1617676677873,2.90695,2121.6,2121.5,2.90695]
[1617676678173,5.04565,2121.6,2121.5,2.90695]
[1617676681876,2.90695,2121.6,2121.5,2.90695]
[1617676684780,2.90695,2121.6,2121.5,5.42525]
[1617676685180,2.0,2122.4,2121.5,5.42525]
[1617676685380,82.7863,2122.5,2121.5,6.36435]
[1617676685580,82.7863,2122.5,2121.5,8.36435]
[1617676685984,23.5194,2122.5,2122.4,2.90695]
[1617676686181,23.5194,2122.5,2122.4,4.82305]
[1617676686583,23.5194,2122.5,2122.4,1.9161]
[1617676687982,26.42635,2122.5,2122.4,4.82305]
[1617676688683,13.90695,2122.5,2122.4,4.82305]
[1617676689286,11.0,2122.5,2122.4,4.82305]
[1617676692885,11.0,2122.5,2122.4,2.90695]
[1617676698096,13.90695,2122.5,2122.4,2.90695]
[1617676704312,13.90695,2122.5,2121.9,63.9881]
[1617676704712,13.90695,2122.5,2121.1,3.1]
[1617676704914,86.22075,2122.5,2121.1,3.1]
[1617676705112,86.22075,2122.5,2121.1,1.1]
[1617676705313,86.22075,2122.5,2120.8,3.1]
[1617676706214,83.3138,2122.5,2122.0,2.90695]
[1617676706915,11.0,2122.5,2122.0,2.90695]
[1617676708019,11.0,2122.5,2122.3,2.90695]
[1617676710020,2.90695,2122.4,2122.3,2.90695]
[1617676719437,11.0,2122.5,2122.3,2.90695]
[1617676719638,11.0,2122.5,2122.3,4.63145]
[1617676720934,11.0,2122.5,2122.3,2.90695]
[1617676726337,13.90695,2122.5,2122.3,2.90695]
[1617676727538,11.0,2122.5,2122.3,2.90695]
[1617676736557,13.90695,2122.5,2122.3,2.90695]
[1617676745075,16.13735,2122.5,2122.3,2.90695]
[1617676748682,13.90695,2122.5,2122.3,2.90695]
[1617676749785,16.66485,2122.5,2122.3,2.90695]
[1617676756286,16.66485,2122.5,2120.8,5.95262445]
[1617676756486,13.7579,2122.5,2121.9,2.90695]
[1617676757087,53.8794,2122.2,2121.9,2.90695]
[1617676757887,53.8794,2122.2,2121.3,1.1]
[1617676758388,53.8794,2122.2,2121.5,2.90695]
[1617676758592,53.8794,2122.2,2121.5,4.00695]
[1617676759187,53.8794,2122.2,2121.5,4.95675]
[1617676759388,53.8794,2122.2,2121.5,2.90695]
[1617676760689,5.08715,2121.6,2121.5,2.90695]
[1617676761889,6.04075,2121.6,2120.8,2.0]
[1617676762090,5.08715,2121.6,2120.8,2.0]
[1617676762413,5.08715,2121.6,2120.7,2.0]
[1617676762690,70.6896,2121.6,2121.3,2.90695]
[1617676764493,2.90695,2121.4,2121.3,2.90695]
[1617676770499,65.76875,2121.4,2121.3,2.90695]
[1617676776709,66.70635,2121.4,2121.3,2.90695]
[1617676776909,65.76875,2121.4,2120.6,60.726]
[1617676777836,66.70045,2121.4,2120.6,60.726]
[1617676778817,63.7935,2121.4,2120.8,2.90695]
[1617676780717,2.90695,2120.9,2120.8,2.90695]
[1617676780916,5.45195,2120.9,2120.8,2.90695]
[1617676784016,69.20345,2120.9,2120.8,2.90695]
[1617676789630,5.45195,2120.9,2120.8,2.90695]
[1617676789828,78.6283,2121.6,2120.8,2.90695]
[1617676790029,78.6283,2121.6,2121.1,53.6141]
[1617676790831,78.6283,2121.6,2121.5,2.90695]
[1617676792834,81.53525,2121.6,2121.5,2.90695]
[1617676799440,78.6283,2121.6,2121.5,2.90695]
[1617676800940,81.53525,2121.6,2121.5,2.90695]
[1617676801342,5.08715,2121.6,2121.5,2.90695]
[1617676803341,5.08715,2121.6,2120.9,79.2546]
[1617676803544,69.5833,2121.4,2120.9,79.2546]
[1617676804944,69.5833,2121.4,2121.3,2.90695]
[1617676806444,2.1802,2121.6,2121.3,2.90695]
[1617676806646,67.6686,2122.1,2121.4,67.866]
[1617676806845,2.90695,2121.5,2121.4,67.866]
[1617676807044,5.33445,2121.5,2121.4,67.866]
[1617676808148,2.90695,2121.5,2121.4,67.866]
[1617676810251,67.6686,2122.1,2121.4,67.866]
[1617676810574,67.6686,2122.1,2121.4,69.866]
[1617676810758,13.0047,2122.2,2121.4,2.0]
[1617676810950,13.0047,2122.2,2122.1,2.90695]
[1617676815756,2.90695,2122.3,2122.1,2.90695]
[1617676832879,62.6911,2122.2,2122.1,2.90695]
[1617676836891,62.6911,2122.2,2121.6,55.62]
[1617676837081,62.6911,2122.2,2122.0,2.90695]
[1617676839180,2.90695,2122.1,2122.0,2.90695]
[1617676867514,2.90695,2122.1,2120.9,3.671]
[1617676867717,60.331,2122.0,2120.9,3.671]
[1617676869217,60.331,2122.0,2121.7,2.90695]
[1617676869417,61.2751,2122.0,2121.7,2.90695]
[1617676869917,60.331,2122.0,2121.7,2.90695]
[1617676871218,2.90695,2121.8,2121.7,2.90695]
[1617676872123,2.90695,2121.8,2121.5,2.0441]
[1617676872421,2.90695,2121.8,2120.9,5.5873]
[1617676872623,2.90695,2121.8,2120.9,2.571]
[1617676873424,2.90695,2121.0,2120.9,5.47795]
[1617676879930,2.90695,2121.0,2120.9,71.57595]
[1617676883234,2.89550953,2121.0,2120.9,71.57595]
[1617676888643,2.9469,2122.7,2120.9,5.47795]
[1617676888842,88.1111,2122.3,2121.6,68.2552]
[1617676889042,88.1111,2122.3,2121.6,70.2424]
[1617676889441,13.0065,2122.3,2121.6,4.89415]
[1617676890460,13.0065,2122.3,2122.2,57.5103]
[1617676890743,13.0065,2122.3,2122.2,59.2277]
[1617676891145,13.0065,2122.3,2122.2,1.7174]
[1617676891343,15.91345,2122.3,2122.2,4.62435]
[1617676891543,15.91345,2122.3,2122.2,2.90695]
[1617676894050,70.94445,2122.3,2122.2,2.90695]
[1617676897154,18.14875,2122.3,2122.2,2.90695]
[1617676898255,18.14875,2122.3,2121.4,2.571]
[1617676898458,77.2126,2121.8,2121.4,2.571]
[1617676899358,2.90695,2121.5,2121.4,2.571]
[1617676902566,2.90695,2121.5,2121.3,2.90695]
[1617676905165,2.90695,2121.5,2121.2,77.5171]
[1617676921991,13.0065,2122.3,2121.1,2.90695]
[1617676922290,13.0065,2122.3,2121.8,61.5537]
[1617676923593,13.0065,2122.3,2122.2,2.90695]
[1617676925697,15.91345,2122.3,2122.2,2.90695]
[1617676940216,15.91345,2122.3,2122.2,60.17675]
[1617676941819,15.91345,2122.3,2122.2,62.46705]
[1617676945222,15.91345,2122.3,2122.2,60.17675]
[1617676953736,15.91345,2122.3,2122.2,2.90695]
[1617676962248,15.91345,2122.3,2121.6,2.571]
[1617676962748,73.0639,2121.8,2121.6,2.571]
[1617676963852,73.0639,2121.8,2121.7,2.90695]
[1617676964149,2.90695,2121.9,2121.7,2.90695]
[1617676964351,2.90695,2121.9,2121.7,80.89575]
[1617676966058,2.90695,2121.9,2121.7,2.90695]
[1617676968262,78.3888,2122.0,2121.7,2.90695]
[1617676979374,2.90695,2122.2,2121.7,2.90695]
[1617676979976,2.90695,2122.2,2122.1,2.90695]
[1617676981479,11.0,2122.5,2122.1,2.90695]
[1617676981880,58.5006,2122.4,2122.1,2.90695]
[1617676982081,58.5006,2122.4,2121.6,2.571]
[1617676984087,58.5006,2122.4,2122.3,2.90695]
[1617676993096,58.5006,2122.4,2121.6,2.571]
[1617676994196,58.5006,2122.4,2122.1,2.90695]
[1617676994399,11.0,2122.5,2122.1,2.90695]
[1617676994597,11.0,2122.5,2122.2,77.6846]
[1617676996098,11.0,2122.5,2122.4,2.90695]
[1617676996301,11.0,2122.5,2122.4,64.57775]
[1617676999403,11.0,2122.5,2122.4,2.90695]
[1617677001203,11.0,2122.5,2122.4,62.38605]
[1617677006006,11.0,2122.5,2122.4,2.90695]
[1617677006208,13.5539,2122.5,2122.4,2.90695]
[1617677009716,11.0,2122.5,2122.4,2.90695]
[1617677013823,13.1714,2122.5,2122.4,2.90695]
[1617677019934,13.1714,2122.5,2121.6,7.42746315]
[1617677020137,60.1585,2122.4,2121.6,7.42746315]
[1617677020436,5.10695,2121.7,2121.6,7.42746315]
[1617677020637,5.10695,2121.7,2121.6,2.571]
[1617677021837,55.0956,2121.7,2121.6,2.571]
[1617677022638,55.0956,2121.7,2121.5,2.90695]
[1617677071401,56.0464,2121.7,2121.5,2.90695]
[1617677071601,55.0956,2121.7,2121.5,2.90695]
[1617677073704,2.90695,2121.9,2121.5,2.90695]
[1617677074505,57.86,2121.3,2121.2,2.90695]
[1617677074705,2.3379,2121.3,2121.2,2.90695]
[1617677078722,5.24485,2121.3,2121.2,2.90695]
[1617677079116,2.3379,2121.3,2121.2,2.90695]
[1617677079917,0.9383,2122.0,2121.2,2.90695]
[1617677080119,2.9383,2122.0,2121.2,2.90695]
[1617677080319,55.0498,2121.3,2121.2,2.90695]
[1617677080618,59.92785,2121.3,2121.2,2.90695]
[1617677100148,4.87805,2121.3,2121.2,2.90695]
[1617677101950,2.90695,2121.3,2121.2,2.90695]
[1617677102553,5.15295,2121.3,2121.2,2.90695]
[1617677113361,64.28345,2121.3,2121.2,2.90695]
[1617677117068,5.15295,2121.3,2121.2,2.90695]
[1617677121469,61.06205,2121.3,2121.2,2.90695]
[1617677132891,5.15295,2121.3,2121.2,2.90695]
[1617677135393,5.15295,2121.3,2120.2,70.4656]
[1617677135592,74.5809,2120.8,2120.2,70.4656]
[1617677135792,76.4131,2120.8,2120.2,70.4656]
[1617677137293,1.8322,2120.8,2120.6,2.90695]
[1617677137494,15.3277,2121.3,2120.6,2.90695]
[1617677137715,15.3277,2121.3,2121.1,68.9192]
[1617677139298,2.90695,2121.2,2121.1,68.9192]
[1617677139498,2.90695,2121.2,2121.0,2.90695]
[1617677139699,2.90695,2121.2,2120.6,58.6915]
[1617677139901,61.3337,2120.9,2120.6,58.6915]
[1617677141400,64.24065,2120.9,2120.8,2.90695]
[1617677148812,2.90695,2120.9,2120.8,2.90695]
[1617677154118,2.90695,2120.9,2120.0,4.89720432]
[1617677154318,62.0142,2120.8,2120.0,4.89720432]
[1617677154518,62.0142,2120.8,2119.9,5.99861886]
[1617677155420,62.9641,2120.8,2120.4,2.90695]
[1617677157520,2.90695,2120.5,2120.4,2.90695]
[1617677157721,5.59225,2120.5,2120.4,2.90695]
[1617677160223,2.90695,2120.5,2120.4,2.90695]
[1617677161926,13.0817,2121.3,2120.4,2.90695]
[1617677161927,30.0,2121.2,2120.4,2.90695]
[1617677162328,64.698,2120.8,2120.4,2.90695]
[1617677163527,64.698,2120.8,2120.7,2.90695]
[1617677175246,64.68762172,2120.8,2120.7,2.90695]
[1617677176651,64.68762172,2120.8,2120.2,62.4207]
[1617677177561,64.68762172,2120.8,2120.6,2.90695]
[1617677179654,4.87205,2120.7,2120.6,2.90695]
[1617677182061,5.80095,2120.7,2120.6,2.90695]
[1617677182261,4.87205,2120.7,2120.6,2.90695]
[1617677194582,2.90695,2120.7,2120.6,2.90695]
[1617677199485,4.93045,2120.7,2120.6,2.90695]
[1617677203994,2.90695,2120.7,2120.6,2.90695]
[1617677205497,4.91515,2120.7,2120.6,2.90695]
[1617677222120,5.86545,2120.7,2120.6,2.90695]
[1617677223025,4.91515,2120.7,2120.6,2.90695]
[1617677223222,4.91515,2120.7,2120.6,65.74975]
[1617677224625,2.90695,2120.7,2120.6,65.74975]
[1617677224827,2.90695,2120.7,2120.6,2.90695]
[1617677225042,54.8062,2122.0,2121.1,73.883]
[1617677225640,0.9383,2122.0,2120.8,4.93993152]
[1617677225833,0.9383,2122.0,2121.8,2.90695]
[1617677227833,2.90695,2121.9,2121.8,2.90695]
[1617677228033,5.46545,2121.9,2121.8,2.90695]
[1617677230035,65.2633,2121.8,2120.9,4.93901256]
[1617677230236,5.46545,2121.9,2120.9,4.93901256]
[1617677231037,59.4859,2121.2,2120.9,4.93901256]
[1617677231936,59.4859,2121.2,2121.1,2.90695]
[1617677234639,2.90695,2121.4,2121.1,2.90695]
[1617677235045,56.4888,2121.2,2121.1,2.90695]
[1617677243456,2.90695,2121.4,2121.1,2.90695]
[1617677249565,13.1149,2122.2,2121.4,58.7735]
[1617677249766,13.1149,2122.2,2121.5,2.0]
[1617677250065,13.1149,2122.2,2122.1,2.90695]
[1617677250266,13.1149,2122.2,2122.1,5.34625]
[1617677252468,11.0,2122.5,2122.1,5.34625]
[1617677254069,11.0,2122.5,2122.4,2.90695]
[1617677263179,68.7138,2122.5,2122.4,2.90695]
[1617677263881,11.0,2122.5,2122.4,2.90695]
[1617677264980,11.0,2122.5,2122.4,5.70435]
[1617677265403,11.0,2122.5,2122.4,7.70435]
[1617677272691,11.0,2122.5,2122.4,2.90695]
[1617677273492,65.3361,2122.5,2122.4,2.90695]
[1617677274791,11.0,2122.5,2122.4,2.90695]
[1617677277992,11.0,2122.5,2122.4,72.74145]
[1617677285908,11.0,2122.5,2122.4,2.90695]
[1617677291113,11.0,2122.5,2122.4,4.90695]
[1617677295620,10.6988,2122.5,2122.4,4.90695]
[1617677295823,10.3594,2122.5,2122.4,6.00695]
[1617677296119,10.1875,2122.5,2122.4,6.00695]
[1617677297120,9.0312,2122.5,2122.4,6.00695]
[1617677297320,9.09305,2123.2,2122.4,6.00695]
[1617677298319,9.09305,2123.2,2123.1,2.90695]
[1617677298521,9.09305,2123.2,2123.1,9.26235]
[1617677300022,57.6881,2123.3,2123.1,9.26235]
[1617677301321,2.90695,2124.8,2123.1,9.26235]
[1617677301523,60.186,2124.2,2123.3,66.1091]
[1617677301724,60.186,2124.2,2123.4,3.1]
[1617677302224,2.90695,2124.8,2123.4,3.1]
[1617677302425,30.0,2126.6,2123.4,3.1]
[1617677302426,12.4602,2126.4,2124.7,2.90695]
[1617677302624,12.4602,2126.4,2125.2,55.4857]
[1617677302832,12.4602,2126.4,2125.3,2.0]
[1617677303728,12.4602,2126.4,2125.3,3.1]
[1617677304124,12.4602,2126.4,2125.3,95.0217]
[1617677304424,12.4602,2126.4,2126.3,5.55845]
[1617677304832,1.0,2126.5,2126.4,72.3028]
[1617677305025,0.2898,2126.5,2126.4,2.0]
[1617677305625,13.4257,2128.0,2126.4,2.0]
[1617677306329,13.4257,2128.0,2127.9,2.90695]
[1617677306529,13.4257,2128.0,2127.9,5.29925]
[1617677308232,13.4257,2128.0,2127.9,2.90695]
[1617677314843,13.4257,2128.0,2127.5,53.3035]
[1617677315441,2.90695,2128.1,2126.0,1.1]
[1617677315641,16.28535,2128.1,2125.4,2.0]
[1617677315941,16.28535,2128.1,2127.2,66.463]
[1617677316442,13.3784,2128.1,2128.0,2.90695]
[1617677319143,7.09305,2128.0,2126.6,3.7197]
[1617677319643,7.09305,2128.0,2127.7,63.7185]
[1617677320445,7.09305,2128.0,2127.9,2.90695]
[1617677323970,7.09305,2128.0,2126.6,0.9488]
[1617677324247,8.84905,2128.0,2127.7,75.6135]
[1617677324449,8.84905,2128.0,2127.9,2.90695]
[1617677325549,7.09305,2128.0,2127.9,2.90695]
[1617677328954,7.09305,2128.0,2127.9,4.67535]
[1617677330154,7.09305,2128.0,2127.9,2.90695]
[1617677336472,7.09305,2128.0,2127.9,4.90695]
[1617677339574,7.09305,2128.0,2127.9,2.90695]
[1617677351993,6.38335,2128.0,2127.9,6.00695]
[1617677352191,5.43065,2128.0,2127.9,6.00695]
[1617677352491,3.71395,2128.0,2127.9,6.00695]
[1617677353091,3.71395,2128.0,2127.9,4.00695]
[1617677353696,3.71395,2128.0,2127.9,2.90695]
[1617677354793,6.6209,2128.0,2127.9,2.90695]
[1617677355193,3.71395,2128.0,2127.9,2.90695]
[1617677356697,6.6209,2128.0,2127.9,2.90695]
[1617677357097,8.6209,2128.0,2127.9,2.90695]
[1617677357296,8.6209,2128.0,2126.8,1.1]
[1617677358698,5.71395,2128.0,2127.4,2.90695]
[1617677358898,2.0,2127.6,2126.0,1.1]
[1617677359298,3.8037,2127.6,2126.0,1.1]
[1617677359498,72.4019,2127.1,2126.0,1.1]
[1617677359699,76.7168,2127.1,2126.0,1.1]
[1617677360700,76.7168,2127.1,2126.4,2.90695]
[1617677360902,77.6585,2127.1,2126.4,2.90695]
[1617677362704,2.90695,2126.5,2126.4,2.90695]
[1617677362897,5.44395,2126.5,2126.4,2.90695]
[1617677364199,2.3149,2127.1,2126.5,73.8733]
[1617677364400,12.8707,2127.5,2126.5,73.8733]
[1617677364805,12.8707,2127.5,2127.2,2.90695]
[1617677366805,2.90695,2127.3,2127.2,2.90695]
[1617677368106,58.1543,2127.2,2125.9,1.1]
[1617677368307,2.0,2127.1,2125.9,1.1]
[1617677368506,2.9383,2127.1,2125.9,1.1]
[1617677369009,2.9383,2127.1,2126.5,2.90695]
[1617677370810,2.90695,2126.6,2126.5,2.90695]
[1617677371014,5.68105,2126.6,2126.5,2.90695]
[1617677372013,5.68105,2126.6,2125.6,1.1]
[1617677372413,73.0567,2126.4,2125.6,1.1]
[1617677372914,73.0567,2126.4,2125.9,2.90695]
[1617677373213,2.0,2126.3,2125.9,2.90695]
[1617677374821,2.90695,2126.0,2125.9,2.90695]
[1617677375718,7.52555,2126.0,2125.9,2.90695]
[1617677376918,7.52555,2126.0,2125.3,2.90695]
[1617677378923,4.6186,2126.0,2125.8,2.90695]
[1617677380934,2.90695,2125.9,2125.8,2.90695]
[1617677381125,4.90695,2125.9,2125.1,60.3045]
[1617677382123,4.90695,2125.9,2125.1,1.1]
[1617677382323,77.0044,2125.5,2124.1,64.6328]
[1617677382523,2.0,2125.4,2124.2,1.1]
[1617677382924,2.0,2125.4,2125.3,2.90695]
[1617677384825,4.90695,2125.4,2125.3,2.90695]
[1617677387530,76.68335,2125.4,2123.8,53.5918]
[1617677388030,76.68335,2125.4,2123.9,1.1]
[1617677389032,73.7764,2125.4,2124.3,2.90695]
[1617677390134,103.7764,2125.4,2124.3,2.90695]
[1617677391038,2.90695,2124.4,2124.3,2.90695]